[Event "Titled Tuesday Blitz August 22 Late 2023"]
[White "Ansh M Shah"]
[Black "Cardozo Munar, Carlos Eduardo"]
[WhiteFideId "25033379"]
[BlackFideId "4409477"]
[WhiteElo "2493"]
[BlackElo "2278"]
[Result "1-0"]
[Round "6"]
[TimeControl "180+1"]
[Date "2023.08.22"]
[WhiteClock "0:01:13"]
[BlackClock "0:01:09"]
[Board "156"]

1. Nf3 {[%clk 0:02:37]}  Nf6 {[%clk 0:02:57]} 2. g3 {[%clk 0:02:38]}  g6 {[%clk 0:02:57]} 3. Bg2 {[%clk 0:02:39]}  Bg7 {[%clk 0:02:58]} 4. O-O {[%clk 0:02:32]}  O-O {[%clk 0:02:59]} 5. b3 {[%clk 0:02:32]}  d5 {[%clk 0:02:59]} 6. Bb2 {[%clk 0:02:32]}  c5 {[%clk 0:02:35]} 7. e3 {[%clk 0:02:30]}  Nc6 {[%clk 0:02:30]} 8. d4 {[%clk 0:02:12]}  b6 {[%clk 0:02:27]} 9. Nbd2 {[%clk 0:02:10]}  e6 {[%clk 0:02:27]} 10. c4 {[%clk 0:02:09]}  Bb7 {[%clk 0:02:22]} 11. Rc1 {[%clk 0:02:07]}  dxc4 {[%clk 0:02:21]} 12. Nxc4 {[%clk 0:02:07]}  cxd4 {[%clk 0:02:21]} 13. Nxd4 {[%clk 0:02:08]}  Rc8 {[%clk 0:02:18]} 14. Nb5 {[%clk 0:01:53]}  Qxd1 {[%clk 0:02:03]} 15. Rfxd1 {[%clk 0:01:53]}  Rfd8 {[%clk 0:01:54]} 16. Nbd6 {[%clk 0:01:39]}  Ba6 {[%clk 0:01:24]} 17. Nxc8 {[%clk 0:01:34]}  Rxc8 {[%clk 0:01:25]} 18. Nd6 {[%clk 0:01:25]}  Ne7 {[%clk 0:01:23]} 19. Nxc8 {[%clk 0:01:24]}  Nxc8 {[%clk 0:01:19]} 20. Rd8+ {[%clk 0:01:23]}  Bf8 {[%clk 0:01:09]} 21. Bxf6 {[%clk 0:01:13]} 1-0


[Site "https://www.chess.com"]

[Event "Titled Tuesday Blitz August 22 Late 2023"]
[White "Jaskolka, Tomasz"]
[Black "Ai, Evan"]
[WhiteFideId "1170791"]
[BlackFideId "2094770"]
[WhiteElo "2491"]
[BlackElo "2269"]
[Result "1-0"]
[Round "6"]
[TimeControl "180+1"]
[Date "2023.08.22"]
[WhiteClock "0:00:21"]
[BlackClock "0:00:02"]
[Board "157"]

1. e4 {[%clk 0:03:00]}  e5 {[%clk 0:02:59]} 2. Nf3 {[%clk 0:03:00]}  Nc6 {[%clk 0:02:58]} 3. Bc4 {[%clk 0:03:01]}  Nf6 {[%clk 0:02:56]} 4. Ng5 {[%clk 0:03:01]}  d5 {[%clk 0:02:55]} 5. exd5 {[%clk 0:03:02]}  Na5 {[%clk 0:02:55]} 6. Bb5+ {[%clk 0:03:02]}  c6 {[%clk 0:02:54]} 7. dxc6 {[%clk 0:03:03]}  bxc6 {[%clk 0:02:54]} 8. Bd3 {[%clk 0:03:04]}  h6 {[%clk 0:02:53]} 9. Ne4 {[%clk 0:03:00]}  Nd5 {[%clk 0:02:53]} 10. Nbc3 {[%clk 0:02:57]}  Nf4 {[%clk 0:02:46]} 11. Bf1 {[%clk 0:02:56]}  f5 {[%clk 0:02:42]} 12. Ng3 {[%clk 0:02:55]}  Bc5 {[%clk 0:02:39]} 13. d3 {[%clk 0:02:49]}  O-O {[%clk 0:02:22]} 14. Be3 {[%clk 0:02:49]}  Bxe3 {[%clk 0:02:02]} 15. fxe3 {[%clk 0:02:49]}  Nd5 {[%clk 0:02:00]} 16. Nxd5 {[%clk 0:02:48]}  cxd5 {[%clk 0:02:01]} 17. Be2 {[%clk 0:02:45]}  Qb6 {[%clk 0:01:49]} 18. Qd2 {[%clk 0:02:41]}  Qxb2 {[%clk 0:01:45]} 19. O-O {[%clk 0:02:41]}  Nc6 {[%clk 0:01:38]} 20. Rab1 {[%clk 0:02:33]}  Qa3 {[%clk 0:01:26]} 21. Rb5 {[%clk 0:02:33]}  a6 {[%clk 0:01:13]} 22. Rxd5 {[%clk 0:02:25]}  Be6 {[%clk 0:01:04]} 23. Bf3 {[%clk 0:02:13]}  Kh8 {[%clk 0:00:49]} 24. c4 {[%clk 0:02:05]}  Bxd5 {[%clk 0:00:37]} 25. Bxd5 {[%clk 0:02:06]}  Rac8 {[%clk 0:00:36]} 26. Nxf5 {[%clk 0:02:02]}  Ne7 {[%clk 0:00:27]} 27. e4 {[%clk 0:01:50]}  Nxf5 {[%clk 0:00:25]} 28. exf5 {[%clk 0:01:50]}  Qc5+ {[%clk 0:00:25]} 29. Kh1 {[%clk 0:01:50]}  Rf6 {[%clk 0:00:24]} 30. Qe2 {[%clk 0:01:44]}  Rcf8 {[%clk 0:00:19]} 31. Qxe5 {[%clk 0:01:40]}  Qa3 {[%clk 0:00:15]} 32. Qe2 {[%clk 0:01:36]}  Rxf5 {[%clk 0:00:12]} 33. Rg1 {[%clk 0:01:21]}  Rf2 {[%clk 0:00:10]} 34. Qe6 {[%clk 0:01:14]}  Qxa2 {[%clk 0:00:07]} 35. Be4 {[%clk 0:01:13]}  Qe2 {[%clk 0:00:04]} 36. Qg6 {[%clk 0:01:11]}  Kg8 {[%clk 0:00:04]} 37. h3 {[%clk 0:00:42]}  R2f6 {[%clk 0:00:03]} 38. Qh7+ {[%clk 0:00:42]}  Kf7 {[%clk 0:00:03]} 39. Bd5+ {[%clk 0:00:42]}  Ke7 {[%clk 0:00:03]} 40. Qxg7+ {[%clk 0:00:43]}  Kd8 {[%clk 0:00:03]} 41. Be4 {[%clk 0:00:25]}  Qf2 {[%clk 0:00:03]} 42. Rb1 {[%clk 0:00:21]}  Qd4 {[%clk 0:00:02]} 43. Rb8# {[%clk 0:00:21]} 1-0


[Site "https://www.chess.com"]

[Event "Titled Tuesday Blitz August 22 Late 2023"]
[White "Sarkar, Justin"]
[Black "Martins, Bruno Andre Leite"]
[WhiteFideId "2010011"]
[BlackFideId "1942255"]
[WhiteElo "2252"]
[BlackElo "2475"]
[Result "1-0"]
[Round "6"]
[TimeControl "180+1"]
[Date "2023.08.22"]
[WhiteClock "0:01:35"]
[BlackClock "0:01:48"]
[Board "159"]

1. d4 {[%clk 0:02:39]}  Nf6 {[%clk 0:02:59]} 2. c4 {[%clk 0:02:39]}  g6 {[%clk 0:02:59]} 3. Bg5 {[%clk 0:02:36]}  Bg7 {[%clk 0:02:59]} 4. Nc3 {[%clk 0:02:35]}  O-O {[%clk 0:02:59]} 5. e3 {[%clk 0:02:32]}  d6 {[%clk 0:02:59]} 6. Bd3 {[%clk 0:02:29]}  c5 {[%clk 0:02:58]} 7. Nge2 {[%clk 0:02:28]}  cxd4 {[%clk 0:02:51]} 8. exd4 {[%clk 0:02:27]}  h6 {[%clk 0:02:51]} 9. Bh4 {[%clk 0:02:21]}  g5 {[%clk 0:02:46]} 10. Bg3 {[%clk 0:02:21]}  Nh5 {[%clk 0:02:46]} 11. h4 {[%clk 0:02:08]}  Nxg3 {[%clk 0:02:41]} 12. Nxg3 {[%clk 0:02:07]}  f5 {[%clk 0:02:24]} 13. hxg5 {[%clk 0:02:05]}  hxg5 {[%clk 0:02:24]} 14. Qh5 {[%clk 0:01:59]}  e5 {[%clk 0:02:17]} 15. Nxf5 {[%clk 0:01:43]}  Bxf5 {[%clk 0:01:57]} 16. Bxf5 {[%clk 0:01:40]}  exd4 {[%clk 0:01:48]} 17. Bh7+ {[%clk 0:01:35]} 1-0


[Site "https://www.chess.com"]

[Event "Titled Tuesday Blitz August 22 Late 2023"]
[White "ArchibaldCerveza29"]
[Black "Matthew_Clarke"]
[WhiteElo "2452"]
[BlackElo "2251"]
[Result "0-1"]
[Round "6"]
[TimeControl "180+1"]
[Date "2023.08.22"]
[WhiteClock "0:00:25"]
[BlackClock "0:00:03"]
[Board "160"]

1. e4 {[%clk 0:02:56]}  c5 {[%clk 0:02:59]} 2. Nf3 {[%clk 0:02:54]}  d6 {[%clk 0:02:59]} 3. d4 {[%clk 0:02:53]}  cxd4 {[%clk 0:03:00]} 4. Nxd4 {[%clk 0:02:54]}  Nf6 {[%clk 0:03:00]} 5. Nc3 {[%clk 0:02:54]}  a6 {[%clk 0:03:01]} 6. Bc4 {[%clk 0:02:52]}  e6 {[%clk 0:02:57]} 7. Bb3 {[%clk 0:02:52]}  b5 {[%clk 0:02:52]} 8. O-O {[%clk 0:02:51]}  Nbd7 {[%clk 0:02:37]} 9. Re1 {[%clk 0:02:40]}  Nc5 {[%clk 0:02:35]} 10. f4 {[%clk 0:02:39]}  b4 {[%clk 0:02:28]} 11. Na4 {[%clk 0:02:37]}  Ncxe4 {[%clk 0:02:21]} 12. f5 {[%clk 0:02:15]}  e5 {[%clk 0:02:06]} 13. Nc6 {[%clk 0:01:56]}  Qc7 {[%clk 0:02:04]} 14. Bd5 {[%clk 0:01:42]}  Nxd5 {[%clk 0:02:00]} 15. Qxd5 {[%clk 0:01:43]}  Nf6 {[%clk 0:02:01]} 16. Qc4 {[%clk 0:01:33]}  Be7 {[%clk 0:01:43]} 17. Nxe5 {[%clk 0:01:30]}  Qxc4 {[%clk 0:01:31]} 18. Nxc4 {[%clk 0:01:31]}  Kd8 {[%clk 0:01:18]} 19. Nab6 {[%clk 0:01:30]}  Ra7 {[%clk 0:01:13]} 20. Nxc8 {[%clk 0:01:28]}  Kxc8 {[%clk 0:01:14]} 21. Be3 {[%clk 0:01:26]}  Rc7 {[%clk 0:01:13]} 22. b3 {[%clk 0:01:22]}  d5 {[%clk 0:00:57]} 23. Nb6+ {[%clk 0:01:13]}  Kb7 {[%clk 0:00:53]} 24. Rad1 {[%clk 0:01:06]}  Rc5 {[%clk 0:00:22]} 25. Bd4 {[%clk 0:00:57]}  Bd6 {[%clk 0:00:21]} 26. Nxd5 {[%clk 0:00:50]}  Rxd5 {[%clk 0:00:19]} 27. Bc5 {[%clk 0:00:51]}  Bxc5+ {[%clk 0:00:18]} 28. Kh1 {[%clk 0:00:47]}  Rxd1 {[%clk 0:00:17]} 29. Rxd1 {[%clk 0:00:48]}  Re8 {[%clk 0:00:16]} 30. h3 {[%clk 0:00:48]}  Re2 {[%clk 0:00:14]} 31. Rc1 {[%clk 0:00:45]}  Ne4 {[%clk 0:00:12]} 32. Kh2 {[%clk 0:00:44]}  Nd6 {[%clk 0:00:06]} 33. Kg3 {[%clk 0:00:39]}  Nxf5+ {[%clk 0:00:05]} 34. Kf4 {[%clk 0:00:39]}  Rf2+ {[%clk 0:00:04]} 35. Ke4 {[%clk 0:00:38]}  Kc6 {[%clk 0:00:02]} 36. g4 {[%clk 0:00:37]}  Nd6+ {[%clk 0:00:03]} 37. Kd3 {[%clk 0:00:36]}  Rf3+ {[%clk 0:00:02]} 38. Ke2 {[%clk 0:00:37]}  Rxh3 {[%clk 0:00:03]} 39. Rf1 {[%clk 0:00:38]}  Re3+ {[%clk 0:00:03]} 40. Kd2 {[%clk 0:00:38]}  Ne4+ {[%clk 0:00:03]} 41. Kc1 {[%clk 0:00:37]}  Nc3 {[%clk 0:00:03]} 42. Kb2 {[%clk 0:00:36]}  f6 {[%clk 0:00:02]} 43. Rh1 {[%clk 0:00:35]}  Kd5 {[%clk 0:00:02]} 44. Rh5+ {[%clk 0:00:28]}  Kc6 {[%clk 0:00:02]} 45. Rh1 {[%clk 0:00:29]}  Bd4 {[%clk 0:00:02]} 46. Kc1 {[%clk 0:00:28]}  Re2 {[%clk 0:00:01]} 47. Rxh7 {[%clk 0:00:27]}  Kd5 {[%clk 0:00:02]} 48. Rxg7 {[%clk 0:00:27]}  Re1+ {[%clk 0:00:03]} 49. Kd2 {[%clk 0:00:25]}  Rd1# {[%clk 0:00:03]} 0-1


[Site "https://www.chess.com"]

[Event "Titled Tuesday Blitz August 22 Late 2023"]
[White "JerMorGurgeh"]
[Black "Penagalapati, Abhinav"]
[BlackFideId "30938210"]
[WhiteElo "2380"]
[BlackElo "2209"]
[Result "1-0"]
[Round "6"]
[TimeControl "180+1"]
[Date "2023.08.22"]
[WhiteClock "0:00:10"]
[BlackClock "0:00:17"]
[Board "164"]

1. d4 {[%clk 0:03:00]}  d5 {[%clk 0:02:58]} 2. Nf3 {[%clk 0:02:59]}  Nf6 {[%clk 0:02:57]} 3. c4 {[%clk 0:02:58]}  c6 {[%clk 0:02:58]} 4. e3 {[%clk 0:02:58]}  e6 {[%clk 0:02:58]} 5. Nbd2 {[%clk 0:02:57]}  Nbd7 {[%clk 0:02:55]} 6. b3 {[%clk 0:02:54]}  b6 {[%clk 0:02:53]} 7. Bd3 {[%clk 0:02:50]}  Bb7 {[%clk 0:02:53]} 8. Bb2 {[%clk 0:02:44]}  Be7 {[%clk 0:02:51]} 9. O-O {[%clk 0:02:40]}  c5 {[%clk 0:02:52]} 10. cxd5 {[%clk 0:02:38]}  Nxd5 {[%clk 0:02:52]} 11. Re1 {[%clk 0:02:26]}  O-O {[%clk 0:02:51]} 12. a3 {[%clk 0:02:19]}  Rc8 {[%clk 0:02:43]} 13. e4 {[%clk 0:02:15]}  Nf4 {[%clk 0:02:41]} 14. Bf1 {[%clk 0:02:15]}  cxd4 {[%clk 0:02:39]} 15. Bxd4 {[%clk 0:02:12]}  Nc5 {[%clk 0:02:39]} 16. Qb1 {[%clk 0:01:50]}  Qc7 {[%clk 0:02:13]} 17. g3 {[%clk 0:01:40]}  Ng6 {[%clk 0:02:11]} 18. Qb2 {[%clk 0:01:35]}  f6 {[%clk 0:01:57]} 19. Bc4 {[%clk 0:01:34]}  Kh8 {[%clk 0:01:49]} 20. Rac1 {[%clk 0:01:25]}  e5 {[%clk 0:01:45]} 21. Bxc5 {[%clk 0:01:20]}  bxc5 {[%clk 0:01:36]} 22. Qc2 {[%clk 0:01:12]}  Rfd8 {[%clk 0:01:34]} 23. Be6 {[%clk 0:01:09]}  Rb8 {[%clk 0:01:33]} 24. Nc4 {[%clk 0:01:06]}  Qc6 {[%clk 0:01:10]} 25. Bf5 {[%clk 0:00:55]}  Nf8 {[%clk 0:01:07]} 26. Na5 {[%clk 0:00:51]}  Qa6 {[%clk 0:01:03]} 27. Nxb7 {[%clk 0:00:49]}  Qxb7 {[%clk 0:01:01]} 28. Nd2 {[%clk 0:00:47]}  g6 {[%clk 0:01:00]} 29. Bh3 {[%clk 0:00:46]}  Kg7 {[%clk 0:01:00]} 30. Rb1 {[%clk 0:00:43]}  Rd4 {[%clk 0:00:59]} 31. Nc4 {[%clk 0:00:40]}  Rbd8 {[%clk 0:00:59]} 32. Bg2 {[%clk 0:00:38]}  Ne6 {[%clk 0:00:58]} 33. Ne3 {[%clk 0:00:32]}  Rd2 {[%clk 0:00:55]} 34. Qc3 {[%clk 0:00:30]}  R8d3 {[%clk 0:00:52]} 35. Qc4 {[%clk 0:00:27]}  Nd4 {[%clk 0:00:48]} 36. Nd5 {[%clk 0:00:26]}  Bf8 {[%clk 0:00:37]} 37. Re3 {[%clk 0:00:24]}  Rd1+ {[%clk 0:00:29]} 38. Rxd1 {[%clk 0:00:24]}  Rxd1+ {[%clk 0:00:30]} 39. Bf1 {[%clk 0:00:24]}  Qd7 {[%clk 0:00:28]} 40. Kg2 {[%clk 0:00:22]}  h5 {[%clk 0:00:24]} 41. Rd3 {[%clk 0:00:21]}  Ra1 {[%clk 0:00:23]} 42. a4 {[%clk 0:00:20]}  h4 {[%clk 0:00:23]} 43. h3 {[%clk 0:00:19]}  hxg3 {[%clk 0:00:23]} 44. Rxg3 {[%clk 0:00:18]}  Ra2 {[%clk 0:00:20]} 45. Ne3 {[%clk 0:00:17]}  Qf7 {[%clk 0:00:17]} 46. Nf5+ {[%clk 0:00:15]}  Nxf5 {[%clk 0:00:17]} 47. exf5 {[%clk 0:00:14]}  g5 {[%clk 0:00:16]} 48. Qxf7+ {[%clk 0:00:13]}  Kxf7 {[%clk 0:00:16]} 49. Bc4+ {[%clk 0:00:11]}  Ke7 {[%clk 0:00:16]} 50. Rd3 {[%clk 0:00:12]}  Rc2 {[%clk 0:00:13]} 51. Rd5 {[%clk 0:00:11]}  Ke8 {[%clk 0:00:12]} 52. Kf3 {[%clk 0:00:11]}  Be7 {[%clk 0:00:12]} 53. Kg3 {[%clk 0:00:10]}  Rc3+ {[%clk 0:00:13]} 54. f3 {[%clk 0:00:10]}  Rc1 {[%clk 0:00:13]} 55. Kg4 {[%clk 0:00:10]}  Rg1+ {[%clk 0:00:14]} 56. Kh5 {[%clk 0:00:10]}  Rg3 {[%clk 0:00:14]} 57. Kg6 {[%clk 0:00:10]}  Rxf3 {[%clk 0:00:14]} 58. Rd3 {[%clk 0:00:09]}  Rxd3 {[%clk 0:00:14]} 59. Bxd3 {[%clk 0:00:10]}  Kd7 {[%clk 0:00:14]} 60. Be4 {[%clk 0:00:09]}  Bd8 {[%clk 0:00:14]} 61. Kf7 {[%clk 0:00:09]}  Kd6 {[%clk 0:00:15]} 62. Ke8 {[%clk 0:00:07]}  Ba5 {[%clk 0:00:16]} 63. Kf7 {[%clk 0:00:07]}  Bd8 {[%clk 0:00:15]} 64. Ke8 {[%clk 0:00:07]}  Kc7 {[%clk 0:00:15]} 65. Kf7 {[%clk 0:00:07]}  Kd7 {[%clk 0:00:14]} 66. Kf8 {[%clk 0:00:07]}  Be7+ {[%clk 0:00:14]} 67. Kf7 {[%clk 0:00:07]}  a5 {[%clk 0:00:13]} 68. Kg6 {[%clk 0:00:07]}  Bd8 {[%clk 0:00:13]} 69. Kh5 {[%clk 0:00:07]}  Ke7 {[%clk 0:00:14]} 70. Kg4 {[%clk 0:00:07]}  Bc7 {[%clk 0:00:15]} 71. Kf3 {[%clk 0:00:07]}  Kf7 {[%clk 0:00:15]} 72. Ke3 {[%clk 0:00:08]}  Kg7 {[%clk 0:00:16]} 73. Kd3 {[%clk 0:00:08]}  Bb6 {[%clk 0:00:16]} 74. Bf3 {[%clk 0:00:08]}  Kh6 {[%clk 0:00:16]} 75. Kc4 {[%clk 0:00:09]}  g4 {[%clk 0:00:17]} 76. hxg4 {[%clk 0:00:07]}  Kg5 {[%clk 0:00:17]} 77. Kb5 {[%clk 0:00:06]}  Bc7 {[%clk 0:00:18]} 78. Kxc5 {[%clk 0:00:05]}  Kf4 {[%clk 0:00:18]} 79. Bd1 {[%clk 0:00:05]}  e4 {[%clk 0:00:19]} 80. b4 {[%clk 0:00:04]}  axb4 {[%clk 0:00:18]} 81. Kxb4 {[%clk 0:00:03]}  Ke3 {[%clk 0:00:19]} 82. a5 {[%clk 0:00:03]}  Kd2 {[%clk 0:00:19]} 83. Bb3 {[%clk 0:00:03]}  e3 {[%clk 0:00:19]} 84. Bc4 {[%clk 0:00:04]}  e2 {[%clk 0:00:19]} 85. Bxe2 {[%clk 0:00:04]}  Kxe2 {[%clk 0:00:19]} 86. a6 {[%clk 0:00:03]}  Bb6 {[%clk 0:00:20]} 87. Kb5 {[%clk 0:00:03]}  Bd4 {[%clk 0:00:20]} 88. g5 {[%clk 0:00:04]}  fxg5 {[%clk 0:00:20]} 89. f6 {[%clk 0:00:04]}  Bxf6 {[%clk 0:00:16]} 90. a7 {[%clk 0:00:04]}  g4 {[%clk 0:00:17]} 91. a8=Q {[%clk 0:00:04]}  g3 {[%clk 0:00:15]} 92. Qg2+ {[%clk 0:00:04]}  Kd3 {[%clk 0:00:15]} 93. Kc6 {[%clk 0:00:05]}  Be5 {[%clk 0:00:14]} 94. Kd7 {[%clk 0:00:06]}  Bf4 {[%clk 0:00:15]} 95. Ke6 {[%clk 0:00:07]}  Ke3 {[%clk 0:00:15]} 96. Kf5 {[%clk 0:00:07]}  Bd6 {[%clk 0:00:15]} 97. Kg4 {[%clk 0:00:08]}  Be5 {[%clk 0:00:15]} 98. Qf3+ {[%clk 0:00:09]}  Kd4 {[%clk 0:00:15]} 99. Kh3 {[%clk 0:00:10]}  Kc5 {[%clk 0:00:15]} 100. Kg2 {[%clk 0:00:11]}  Kd4 {[%clk 0:00:15]} 101. Qe2 {[%clk 0:00:11]}  Kd5 {[%clk 0:00:15]} 102. Kf3 {[%clk 0:00:11]}  Ke6 {[%clk 0:00:16]} 103. Qe4 {[%clk 0:00:11]}  Kf6 {[%clk 0:00:16]} 104. Qg4 {[%clk 0:00:10]}  Bd6 {[%clk 0:00:16]} 105. Ke4 {[%clk 0:00:11]}  Ke7 {[%clk 0:00:15]} 106. Qg5+ {[%clk 0:00:11]}  Ke6 {[%clk 0:00:15]} 107. Qf5+ {[%clk 0:00:11]}  Ke7 {[%clk 0:00:15]} 108. Qg6 {[%clk 0:00:12]}  Kd7 {[%clk 0:00:15]} 109. Kd5 {[%clk 0:00:12]}  Bf4 {[%clk 0:00:16]} 110. Qg7+ {[%clk 0:00:12]}  Ke8 {[%clk 0:00:16]} 111. Ke6 {[%clk 0:00:11]}  Kd8 {[%clk 0:00:17]} 112. Qd7# {[%clk 0:00:10]} 1-0


[Site "https://www.chess.com"]

[Event "Titled Tuesday Blitz August 22 Late 2023"]
[White "Haitin, Ilja"]
[Black "campochess"]
[WhiteFideId "4501764"]
[WhiteElo "2374"]
[BlackElo "2194"]
[Result "0-1"]
[Round "6"]
[TimeControl "180+1"]
[Date "2023.08.22"]
[WhiteClock "0:00:00"]
[BlackClock "0:01:28"]
[Board "165"]

1. Nf3 {[%clk 0:02:42]}  c5 {[%clk 0:02:59]} 2. e4 {[%clk 0:02:41]}  Nc6 {[%clk 0:02:59]} 3. d4 {[%clk 0:02:40]}  cxd4 {[%clk 0:02:59]} 4. Nxd4 {[%clk 0:02:41]}  e5 {[%clk 0:02:58]} 5. Nb5 {[%clk 0:02:39]}  a6 {[%clk 0:02:58]} 6. Nd6+ {[%clk 0:02:38]}  Bxd6 {[%clk 0:02:58]} 7. Qxd6 {[%clk 0:02:38]}  Qe7 {[%clk 0:02:59]} 8. Qxe7+ {[%clk 0:02:39]}  Ngxe7 {[%clk 0:02:59]} 9. Nc3 {[%clk 0:02:39]}  d5 {[%clk 0:02:59]} 10. exd5 {[%clk 0:02:38]}  Nb4 {[%clk 0:02:58]} 11. Bd3 {[%clk 0:02:21]}  Nxd3+ {[%clk 0:02:57]} 12. cxd3 {[%clk 0:02:22]}  Bf5 {[%clk 0:02:57]} 13. Ke2 {[%clk 0:02:20]}  Rd8 {[%clk 0:02:57]} 14. Be3 {[%clk 0:02:11]}  Nxd5 {[%clk 0:02:56]} 15. Ne4 {[%clk 0:02:11]}  Nxe3 {[%clk 0:02:55]} 16. Kxe3 {[%clk 0:02:10]}  O-O {[%clk 0:02:54]} 17. Rhc1 {[%clk 0:02:08]}  h6 {[%clk 0:02:50]} 18. Rc7 {[%clk 0:02:08]}  Rd7 {[%clk 0:02:48]} 19. Rac1 {[%clk 0:02:05]}  Rfd8 {[%clk 0:02:48]} 20. Rxd7 {[%clk 0:02:01]}  Rxd7 {[%clk 0:02:47]} 21. Rc8+ {[%clk 0:01:57]}  Kh7 {[%clk 0:02:47]} 22. Rb8 {[%clk 0:01:44]}  Be6 {[%clk 0:02:43]} 23. Nc5 {[%clk 0:01:38]}  Rc7 {[%clk 0:02:41]} 24. Nxe6 {[%clk 0:01:34]}  fxe6 {[%clk 0:02:41]} 25. Kd2 {[%clk 0:00:49]}  Kg6 {[%clk 0:02:37]} 26. Rf8 {[%clk 0:00:42]}  h5 {[%clk 0:02:24]} 27. h4 {[%clk 0:00:35]}  Rc5 {[%clk 0:02:19]} 28. Rb8 {[%clk 0:00:20]}  Rb5 {[%clk 0:02:15]} 29. Kc3 {[%clk 0:00:20]}  Kf5 {[%clk 0:02:11]} 30. b4 {[%clk 0:00:19]}  Kg4 {[%clk 0:02:05]} 31. g3 {[%clk 0:00:18]}  Kf3 {[%clk 0:02:04]} 32. Rf8+ {[%clk 0:00:18]}  Ke2 {[%clk 0:02:04]} 33. a4 {[%clk 0:00:17]}  Rd5 {[%clk 0:02:03]} 34. Rf7 {[%clk 0:00:08]}  Rxd3+ {[%clk 0:02:03]} 35. Kc4 {[%clk 0:00:09]}  b5+ {[%clk 0:01:58]} 36. axb5 {[%clk 0:00:08]}  axb5+ {[%clk 0:01:57]} 37. Kxb5 {[%clk 0:00:09]}  Rf3 {[%clk 0:01:57]} 38. Rxg7 {[%clk 0:00:09]}  Rxf2 {[%clk 0:01:57]} 39. Kc4 {[%clk 0:00:07]}  e4 {[%clk 0:01:50]} 40. b5 {[%clk 0:00:07]}  Ke3 {[%clk 0:01:50]} 41. b6 {[%clk 0:00:07]}  Rb2 {[%clk 0:01:50]} 42. b7 {[%clk 0:00:08]}  Ke2 {[%clk 0:01:47]} 43. Kd4 {[%clk 0:00:08]}  e3 {[%clk 0:01:47]} 44. Re7 {[%clk 0:00:08]}  Kf2 {[%clk 0:01:46]} 45. Rf7+ {[%clk 0:00:08]}  Ke2 {[%clk 0:01:43]} 46. Re7 {[%clk 0:00:07]}  Kd2 {[%clk 0:01:42]} 47. Rxe6 {[%clk 0:00:01]}  Rb4+ {[%clk 0:01:41]} 48. Kc5 {[%clk 0:00:01]}  Rxb7 {[%clk 0:01:41]} 49. Kc6 {[%clk 0:00:01]}  Rg7 {[%clk 0:01:40]} 50. Rd6+ {[%clk 0:00:01]}  Ke1 {[%clk 0:01:39]} 51. Kd5 {[%clk 0:00:02]}  Rxg3 {[%clk 0:01:38]} 52. Ke4 {[%clk 0:00:02]}  e2 {[%clk 0:01:38]} 53. Kf4 {[%clk 0:00:02]}  Rh3 {[%clk 0:01:36]} 54. Ra6 {[%clk 0:00:02]}  Rxh4+ {[%clk 0:01:36]} 55. Kg3 {[%clk 0:00:02]}  Rd4 {[%clk 0:01:35]} 56. Kf3 {[%clk 0:00:02]}  h4 {[%clk 0:01:33]} 57. Ra2 {[%clk 0:00:02]}  Rd2 {[%clk 0:01:32]} 58. Ra1+ {[%clk 0:00:01]}  Rd1 {[%clk 0:01:32]} 59. Ra2 {[%clk 0:00:02]}  Rd3+ {[%clk 0:01:32]} 60. Ke4 {[%clk 0:00:02]}  Rg3 {[%clk 0:01:31]} 61. Ra1+ {[%clk 0:00:02]}  Kf2 {[%clk 0:01:31]} 62. Ra2 {[%clk 0:00:03]}  Kf1 {[%clk 0:01:29]} 63. Ra7 {[%clk 0:00:00]}  e1=Q+ {[%clk 0:01:28]} 0-1


[Site "https://www.chess.com"]

[Event "Titled Tuesday Blitz August 22 Late 2023"]
[White "Erece, Ece Alkim"]
[Black "Bogaudinov, Rushan"]
[WhiteFideId "6346006"]
[BlackFideId "4129288"]
[WhiteElo "2189"]
[BlackElo "2367"]
[Result "1-0"]
[Round "6"]
[TimeControl "180+1"]
[Date "2023.08.22"]
[WhiteClock "0:00:42"]
[BlackClock "0:01:01"]
[Board "166"]

1. d4 {[%clk 0:02:59]}  h5 {[%clk 0:02:53]} 2. e4 {[%clk 0:02:57]}  h4 {[%clk 0:02:53]} 3. Nc3 {[%clk 0:02:52]}  a6 {[%clk 0:02:52]} 4. h3 {[%clk 0:02:48]}  b5 {[%clk 0:02:52]} 5. Nf3 {[%clk 0:02:46]}  Bb7 {[%clk 0:02:52]} 6. a3 {[%clk 0:02:45]}  e6 {[%clk 0:02:52]} 7. Bd3 {[%clk 0:02:43]}  Be7 {[%clk 0:02:48]} 8. Qe2 {[%clk 0:02:38]}  d6 {[%clk 0:02:47]} 9. Bd2 {[%clk 0:02:28]}  c5 {[%clk 0:02:45]} 10. dxc5 {[%clk 0:02:20]}  dxc5 {[%clk 0:02:46]} 11. e5 {[%clk 0:02:20]}  Nc6 {[%clk 0:02:42]} 12. O-O-O {[%clk 0:02:15]}  Qc7 {[%clk 0:02:41]} 13. Bf4 {[%clk 0:02:04]}  O-O-O {[%clk 0:02:33]} 14. Be4 {[%clk 0:01:50]}  Nh6 {[%clk 0:02:30]} 15. Kb1 {[%clk 0:01:42]}  Nd4 {[%clk 0:02:25]} 16. Nxd4 {[%clk 0:01:40]}  cxd4 {[%clk 0:02:25]} 17. Bxb7+ {[%clk 0:01:34]}  Kxb7 {[%clk 0:02:20]} 18. Ne4 {[%clk 0:01:34]}  Nf5 {[%clk 0:02:18]} 19. g4 {[%clk 0:01:33]}  hxg3 {[%clk 0:02:17]} 20. fxg3 {[%clk 0:01:34]}  Rd5 {[%clk 0:02:08]} 21. g4 {[%clk 0:01:33]}  Ne3 {[%clk 0:02:05]} 22. Bxe3 {[%clk 0:01:13]}  dxe3 {[%clk 0:02:06]} 23. Qxe3 {[%clk 0:01:05]}  Qxe5 {[%clk 0:02:04]} 24. Qf3 {[%clk 0:01:02]}  Rhd8 {[%clk 0:01:56]} 25. Nc3 {[%clk 0:01:00]}  Bf6 {[%clk 0:01:52]} 26. g5 {[%clk 0:00:56]}  Qxg5 {[%clk 0:01:48]} 27. Nxd5 {[%clk 0:00:55]}  exd5 {[%clk 0:01:45]} 28. c3 {[%clk 0:00:53]}  Kc6 {[%clk 0:01:35]} 29. Rhe1 {[%clk 0:00:51]}  a5 {[%clk 0:01:28]} 30. Qf2 {[%clk 0:00:50]}  Rd7 {[%clk 0:01:14]} 31. Re8 {[%clk 0:00:46]}  Qg6+ {[%clk 0:01:07]} 32. Ka2 {[%clk 0:00:43]}  Qc2 {[%clk 0:01:01]} 33. Qxc2 {[%clk 0:00:42]} 1-0


[Site "https://www.chess.com"]

[Event "Titled Tuesday Blitz August 22 Late 2023"]
[White "Adan Bermudez, Sergio"]
[Black "Ardila, Oscar Humberto"]
[WhiteFideId "2292726"]
[BlackFideId "4404742"]
[WhiteElo "1998"]
[BlackElo "2315"]
[Result "0-1"]
[Round "6"]
[TimeControl "180+1"]
[Date "2023.08.22"]
[WhiteClock "0:01:00"]
[BlackClock "0:01:50"]
[Board "170"]

1. d4 {[%clk 0:03:00]}  Nf6 {[%clk 0:02:59]} 2. Nc3 {[%clk 0:03:00]}  d5 {[%clk 0:02:53]} 3. Bf4 {[%clk 0:02:59]}  c6 {[%clk 0:02:52]} 4. e3 {[%clk 0:02:59]}  e6 {[%clk 0:02:52]} 5. Nf3 {[%clk 0:02:57]}  Bb4 {[%clk 0:02:53]} 6. Bd3 {[%clk 0:02:57]}  Qa5 {[%clk 0:02:52]} 7. O-O {[%clk 0:02:54]}  Bxc3 {[%clk 0:02:51]} 8. bxc3 {[%clk 0:02:53]}  Qxc3 {[%clk 0:02:51]} 9. Rb1 {[%clk 0:02:44]}  O-O {[%clk 0:02:50]} 10. Bd6 {[%clk 0:02:41]}  Qa5 {[%clk 0:02:39]} 11. Bxf8 {[%clk 0:02:41]}  Kxf8 {[%clk 0:02:40]} 12. Ne5 {[%clk 0:02:41]}  Nbd7 {[%clk 0:02:39]} 13. f4 {[%clk 0:02:38]}  Qc7 {[%clk 0:02:32]} 14. Qe1 {[%clk 0:02:36]}  b6 {[%clk 0:02:30]} 15. Qh4 {[%clk 0:02:15]}  Kg8 {[%clk 0:02:27]} 16. g4 {[%clk 0:02:13]}  Bb7 {[%clk 0:02:18]} 17. g5 {[%clk 0:02:12]}  Ne4 {[%clk 0:02:18]} 18. Rf3 {[%clk 0:02:05]}  c5 {[%clk 0:02:15]} 19. Rh3 {[%clk 0:01:58]}  Nf8 {[%clk 0:02:15]} 20. Bxe4 {[%clk 0:01:51]}  dxe4 {[%clk 0:02:14]} 21. g6 {[%clk 0:01:37]}  fxg6 {[%clk 0:02:13]} 22. Kh1 {[%clk 0:01:31]}  cxd4 {[%clk 0:02:11]} 23. Rg1 {[%clk 0:01:27]}  dxe3 {[%clk 0:02:04]} 24. Nxg6 {[%clk 0:01:26]}  hxg6 {[%clk 0:02:03]} 25. Rxe3 {[%clk 0:01:00]}  Qd8 {[%clk 0:01:50]} 0-1


[Site "https://www.chess.com"]